Workbook

Sheet Instructions
B2: Instructions
C3: Name of Service Provider
C4: Date
C5: The Exchange Rate to be used when completing this Pricing Workbook: | D5: R16,11 to 1 USD
C6: All the Rand Values must be filled in as per the pricing workbook to 2 decimal places.
C7: All pricing must be Inclusive of Value Added Tax (VAT).
C8: Validity of Pricing must be for One Hundred and Eighty (180) days.
B9: 1. | C9: This MS Excel Workbook contains a separate spreadsheets designed to provide a robust understanding of the costing model. It is ESSENTIAL that this model be used in the pricing response.
B10: 2. | C10: The descriptions and Instructions/context for each spreadsheet, as well as convenient one-click navigation of the workbook are detailed below under the heading of "Pricing Workbook Tab Instructions" .
B11: 3. | C11: Each worksheet is designed to elicit specific pricing information related to establishing, managing, developing, and deploying the work required by the Hosted PBX. If your typical pricing model does not normally charge for a specific element provided within this workbook, then please provide a statement in your "Assumptions" regarding your methodology for charging for that element (i.e., not applicable, charged on a time and material (T&M) basis, etc.).
B12: 4. | C12: The worksheets in this Pricing Template are protected to minimize the risk of compromising the integrity of the workbook structure and formulas. As such, the editable cells within each worksheet are indicated in light blue highlight as shown =================================> | D12: This cell is Editable
B13: 5. | C13: Service provider must note that only unconditional discounts will be taken into account for purposes of pricing evaluation.”
B16: Pricing Goals
B18: Transnet has developed the following Service pricing goals for RFP respondents to utilize in developing the Service Pricing proposal. RFP respondent pricing should reflect: - Predetermined and Fixed Pricing for services over agreement term - Scalable to account for additions or reductions in business requirements - Ability to plug and unplug services to adapt new service delivery methods - All respondents assumptions in developing pricing are visible - Pricing Models ability to reflect ongoing continuous improvement gains - Pricing is structured so to encourage standardized use and behaviours - Transparent to underlying cost drivers - Enable external benchmarking of competitive services

Sheet Summary
C2: PROVISIONING OF VoIP SERVICES PRICING WORKBOOK
B3: ='Instructions '!$C$3 -> Name of Service Provider
B5: Instructions for completing this Pricing Workbook
B6: No | C6: Pricing Elements | D6: Year 1 | E6: Year 2 | F6: Year 3 | G6: Year 4 | H6: Year 5 | I6: Total
B7: 1 | C7: FTC-Transition | D7: ='FTC-Transition'!C15 -> 0 | I7: =SUM(D7:H7) -> 0
B8: 2 | C8: FTC Recurring | D8: ='FTC-Recurring'!G32 -> 0 | E8: ='FTC-Recurring'!J32 -> 0 | F8: ='FTC-Recurring'!M32 -> 0 | G8: ='FTC-Recurring'!P32 -> 0 | H8: ='FTC-Recurring'!S32 -> 0 | I8: =SUM(D8:H8) -> 0
B9: 3 | C9: FTC-Disengagement | H9: ='FTC-Disengagement'!C15 -> 0 | I9: =SUM(D9:H9) -> 0
B10: 4 | C10: CAPEX | D10: =CAPEX!F14 -> 0 | I10: =SUM(D10:H10) -> 0
B11: Total (Incl. VAT) | D11: =SUM(D7:D10) -> 0 | E11: 0 | F11: 0 | G11: 0 | H11: 0 | I11: 0

Sheet FTC-Transition
B2: FIXED TELEPHONE COMMUNICATION TRANSITION
B3: FTC Services | C3: Transition Fees | E3: NB: Estimated transition from current service provider is 3 months
B4: ='Instructions '!C3 -> Name of Service Provider
B6: Resource Category (itemize all charges) | C6: Cost Breakdown Per Month (Incl. VAT) | D6: Description of Services / Comments
B7: Project Team / Management | C7: 0
B8: Hardware | C8: 0
B9: Testing | C9: 0
B10: Training | C10: 0
B11: Shipping/Handling/Storage | C11: 0
B12: Installation / build-out | C12: 0
B13: Third-party consulting and/or labour | C13: 0
B14: TOTAL TRANSITION FEES ( Incl. VAT) | C14: =SUM(C7:C13) -> 0
B15: ANNUAL SERVICE FEES ( Incl. VAT) | C15: =C14*12 -> 0

Sheet FTC-Recurring
B2: FIXED TELEPHONE COMMUNICATION MAINTENANCE AND SUPPORT SERVICES
B4: ='Instructions '!C3 -> Name of Service Provider | E4: Year 1 | H4: Year 2 | K4: Year 3 | N4: Year 4 | Q4: Year 5
E5: Price Per Month ( Incl. VAT) | H5: Price Per Month ( Incl. VAT) | K5: Price Per Month ( Incl. VAT) | N5: Price Per Month ( Incl. VAT) | Q5: Price Per Month ( Incl. VAT)
B6: Resource Category | C6: Resource Unit of Measure | D6: Service Level | E6: Baseline Quantity | F6: Monthly Unit Cost | G6: Monthly Total | H6: Baseline Quantity | I6: Monthly Unit Cost | J6: Monthly Total | K6: Baseline Quantity | L6: Monthly Unit Cost | M6: Monthly Total | N6: Baseline Quantity | O6: Monthly Unit Cost | P6: Monthly Total | Q6: Baseline Quantity | R6: Monthly Unit Cost | S6: Monthly Total
B7: SIP Trunks | C7: Trunk and channel fee | D7: 1 GB SIP 60 ( 360 Channels ) | E7: 3 | G7: =F7*E7 -> R0.00 | H7: 3 | J7: =I7*H7 -> R0.00 | K7: 3 | M7: =L7*K7 -> R0.00 | N7: 3 | P7: =O7*N7 -> R0.00 | Q7: 3 | S7: =R7*Q7 -> R0.00
B8: Call Rates | C8: On-net per second (zero rated) | E8: 202,915,970 | G8: R0.00 | H8: 202,915,970 | J8: R0.00 | K8: 202,915,970 | M8: R0.00 | N8: 202,915,970 | P8: R0.00 | Q8: 202,915,970 | S8: R0.00
C9: Off-net per second (National Average Landline) | E9: 136,347,512 | G9: R0.00 | H9: 136,347,512 | J9: R0.00 | K9: 136,347,512 | M9: R0.00 | N9: 136,347,512 | P9: R0.00 | Q9: 136,347,512 | S9: R0.00
C10: Off-net per second (To Cellular networks) | E10: 201,305,524 | G10: =F10*E10 -> R0.00 | H10: 201,305,524 | J10: R0.00 | K10: 201,305,524 | M10: R0.00 | N10: 201,305,524 | P10: R0.00 | Q10: 201,305,524 | S10: R0.00
B11: Voice Service Build and Change (IMACDF) per month | C11: Install | D11: Qty of Installs | E11: 1,000 | G11: =F11*E11 -> R0.00 | H11: 1,000 | J11: =I11*H11 -> R0.00 | K11: 1,000 | M11: =L11*K11 -> R0.00 | N11: 1,000 | P11: =O11*N11 -> R0.00 | Q11: 1,000 | S11: =R11*Q11 -> R0.00
C12: Move | D12: Qty of Moves | E12: 100 | G12: =F12*E12 -> R0.00 | H12: 100 | J12: R0.00 | K12: 100 | M12: R0.00 | N12: 100 | P12: R0.00 | Q12: 100 | S12: R0.00
C13: Add | D13: Qty of Adds | E13: 50 | G13: R0.00 | H13: 50 | J13: R0.00 | K13: 50 | M13: R0.00 | N13: 50 | P13: R0.00 | Q13: 50 | S13: R0.00
C14: Change | D14: Qty of Changes | E14: 1,000 | G14: R0.00 | H14: 1,000 | J14: R0.00 | K14: 1,000 | M14: R0.00 | N14: 1,000 | P14: R0.00 | Q14: 1,000 | S14: R0.00
C15: Dismantlement | D15: Qty of Disposals | E15: 500 | G15: R0.00 | H15: 500 | J15: R0.00 | K15: 500 | M15: R0.00 | N15: 500 | P15: R0.00 | Q15: 500 | S15: R0.00
C16: Faults | D16: 24/7 | E16: 118 | G16: R0.00 | H16: 118 | J16: R0.00 | K16: 118 | M16: R0.00 | N16: 118 | P16: R0.00 | Q16: 118 | S16: R0.00
B17: Voice Mailbox & Service | C17: Fixed monthly fee per subscriber | D17: Standard | E17: 1,500 | G17: R0.00 | H17: 1,500 | J17: R0.00 | K17: 1,500 | M17: R0.00 | N17: 1,500 | P17: =O17*N17 -> R0.00 | Q17: 1,500 | S17: =R17*Q17 -> R0.00
B18: Inbound/Outbound Contact Centre Services | C18: Cost per Transnet agent | D18: IVR | E18: 10 | G18: R0.00 | H18: 10 | J18: R0.00 | K18: 10 | M18: R0.00 | N18: 10 | P18: R0.00 | Q18: 10 | S18: R0.00
D19: Advanced Service (with Multimedia) | E19: 200 | G19: R0.00 | H19: 200 | J19: R0.00 | K19: 200 | M19: R0.00 | N19: 200 | P19: R0.00 | Q19: 200 | S19: R0.00
B20: Voice Switcboard-1 | C20: Basic fixed monthly rental fee | D20: VIP | E20: 1 | G20: R0.00 | H20: 1 | J20: R0.00 | K20: 1 | M20: R0.00 | N20: 1 | P20: R0.00 | Q20: 1 | S20: R0.00
D21: Standard | E21: 6 | G21: R0.00 | H21: 6 | J21: R0.00 | K21: 6 | M21: R0.00 | N21: 6 | P21: R0.00 | Q21: 6 | S21: R0.00
B22: Voice Recorder 60 sites with 10 000 hours per site | C22: All CTC,NOC, Port Controls and Call Centers must be recorded | E22: 2,000 | G22: =F22*E22 -> R0.00 | H22: 2,000 | J22: R0.00 | K22: 2,000 | M22: R0.00 | N22: 2,000 | P22: R0.00 | Q22: 2,000 | S22: R0.00
B23: Telephone Managenent System ( TMS ) | C23: TMS for 27,872 Extention lines | E23: 1 | G23: =F23*E23 -> R0.00 | H23: 1 | J23: R0.00 | K23: 1 | M23: R0.00 | N23: 1 | P23: R0.00 | Q23: 1 | S23: R0.00
B24: Hosted PABX VoIP solution | C24: Costing per unit | E24: 27,872 | G24: =F24*E24 -> R0.00 | H24: 27,872 | J24: R0.00 | K24: 27,872 | M24: R0.00 | N24: 27,872 | P24: R0.00 | Q24: 27,872 | S24: R0.00
B25: Flat rate billing for unmetered voice sites | C25: Sites | E25: 106 | G25: =F25*E25 -> R0.00 | H25: 106 | J25: R0.00 | K25: 106 | M25: R0.00 | N25: 106 | P25: R0.00 | Q25: 106 | S25: R0.00
B26: Telkom 0800 and associated PRIs | C26: (specify units) | E26: 15 | G26: R0.00 | H26: 15 | J26: R0.00 | K26: 15 | M26: R0.00 | N26: 15 | P26: R0.00 | Q26: 15 | S26: R0.00
B27: AudioCodes SBC’s Professional services and Support (360 hours for 5 years) | C27: Professional service and support ( Not limited to 6 hours a month if not used, hours to be carried over in contract duration) | E27: 6 | G27: R0.00 | H27: 6 | J27: R0.00 | K27: 6 | M27: R0.00 | N27: 6 | P27: R0.00 | Q27: 6 | S27: R0.00
B28: Geographical breakouts point with 2 Links on each site for Primary and secondary link (different Service providers), For this line item kindly populate on the breakout points TAB for the pricing. | E28: 1 | H28: 1 | K28: 1 | N28: 1 | Q28: 1
B29: LTE’s currently deployed | E29: 98 | G29: R0.00 | H29: 98 | J29: R0.00 | K29: 98 | M29: R0.00 | N29: 98 | P29: R0.00 | Q29: 98 | S29: R0.00
B30: Gateways currently running TPL Analogues | E30: 10 | G30: R0.00 | H30: 10 | J30: R0.00 | K30: 10 | M30: R0.00 | N30: 10 | P30: R0.00 | Q30: 10 | S30: R0.00
E31: MONTHLY TOTAL ( Incl. VAT) | G31: =SUM(G7:G30) -> 0 | J31: =SUM(J7:J30) -> 0 | M31: =SUM(M7:M30) -> 0 | P31: =SUM(P7:P30) -> 0 | S31: =SUM(S7:S30) -> 0
E32: ANNUAL SERVICE FEES ( Incl. VAT) | G32: =G31*12 -> 0 | J32: =J31*12 -> 0 | M32: =M31*12 -> 0 | P32: =P31*12 -> 0 | S32: =S31*12 -> 0

Sheet Breakout Points
B3: Geographical breakouts point with 2 Links on each site for Primary and secondary link (different Service providers)
B5: Site Name | C5: Bandwidth (MB) | D5: Primary Access | E5: Secondary Access | F5: Unit Price Fibre | G5: Total Primary Access | H5: Unit Price Microwave | I5: Total Secondary Access | J5: Total
B6: East London | C6: 100 | D6: Fibre | E6: Microwave | G6: =C6*F6 -> 0 | I6: =C6*H6 -> 0 | J6: =G6+I6 -> 0
B7: Germiston | C7: 300 | D7: Fibre | E7: Fibre | G7: =C7*F7 -> 0 | I7: =C7*H7 -> 0 | J7: =G7+I7 -> 0
B8: Pretoria (NZASM Building) | C8: 200 | D8: Fibre | E8: Fibre | G8: 0 | I8: 0 | J8: 0
B9: Nelspruit | C9: 100 | D9: Fibre | E9: Microwave | G9: 0 | I9: 0 | J9: 0
B10: Durban (Queens’ warehouse) | C10: 250 | D10: Fibre | E10: Fibre | G10: 0 | I10: 0 | J10: 0
B11: Port Elizabeth (North-end) | C11: 100 | D11: Fibre | E11: Microwave | G11: 0 | I11: 0 | J11: 0
B12: Cape Town (Bellville) | C12: 200 | D12: Fibre | E12: Microwave | G12: 0 | I12: 0 | J12: 0
B13: Bloemfontein | C13: 100 | D13: Fibre | E13: Microwave | G13: 0 | I13: 0 | J13: 0
B14: Richards Bay | C14: 100 | D14: Fibre | E14: Microwave | G14: 0 | I14: 0 | J14: 0
G15: =SUM(G6:G14) -> 0 | I15: =SUM(I6:I14) -> 0 | J15: =SUM(J6:J14) -> 0

Sheet FTC-Disengagement
B2: FIXED TELEPHONE COMMUNICATION DISENGAGEMENT
B3: ='FTC-Transition'!B4 -> Name of Service Provider | C3: Disengagement Fees | E3: NB: Estimated disengagement from Transnet is 3 months
B4: Transnet
B6: Resource Category (itemize all charges) | C6: Cost Breakdown Per Month (Incl. VAT) | D6: Description of Services / Comments
B7: Project Team / Management | C7: 0
B8: Hardware | C8: 0
B9: Testing | C9: 0
B10: Training | C10: 0
B11: Shipping/Handling/Storage | C11: 0
B12: Installation / build-out | C12: 0
B13: Third-party consulting and/or labour | C13: 0
B14: TOTAL TRANSITION FEES ( Incl. VAT) | C14: =SUM(C7:C13) -> 0
B15: ANNUAL SERVICE FEES ( Incl. VAT) | C15: =C14*12 -> 0

Sheet CAPEX
B2: FIXED TELEPHONE COMMUNICATION MAINTANANCE AND SUPPORT SERVICES
A4: ='FTC-Transition'!B4 -> Name of Service Provider | D4: Year 1
D5: Purchase Price ( Incl. VAT)
A6: Resource Category | B6: Resource Unit of Measure | C6: Service Level | D6: Baseline Quantity | E6: Purchase Price Per Unit Cost | F6: Total Purchase Price
A7: MS Teams Devices | B7: 5 years AudioCodes OVOC License with Future upgrades | D7: 1 | F7: =E7*D7 -> R0.00
B8: License with Future upgrades | D8: 14,546 | F8: R0.00
B9: Executive User MS Teams fully compatible | D9: 159 | F9: R0.00
B10: Evolve2 65 Stereo MS Teams Headsets fully compatible | D10: 5,944 | F10: R0.00
B11: MS Teams boardrooms devices fully compatible | D11: 64 | F11: R0.00
B12: 1 x SBC MS-Teams Compatible | D12: 1 | F12: R0.00
D13: TOTAL ( Incl. VAT) | F13: =SUM(F7:F12) -> R0.00
D14: ANNUAL SERVICE FEES ( Incl. VAT) | F14: =F13 -> R0.00

Sheet Resource Rates
B2: Hourly Rate Sheet
B3: Transnet
B5: Minimum 1 Month Engagement | C5: Onsite Hourly Rates | G5: Provider Job Title - Reference Mapping
B6: Job Title / Labour Category | C6: Senior | D6: Middle | E6: Junior
B7: Network Architecture Specialist
B8: Network Design Engineer
B9: L1 Support Engineer
B10: L2 Support Engineer
B11: L3 Support Engineer
B12: Voice services Specialist
B13: Programme Manager
B14: Project Manager
B15: Project Administrator
B16: Security Analyst
B17: Security Architect
B18: Security Systems Engineer
B19: Other (specify
B20: Other (specify
B21: Other (specify
B22: Other (specify
B24: Minimum 3 Month Engagement | C24: Onsite Hourly Rates | G24: Provider Job Title - Reference Mapping
B25: Job Title / Labour Category | C25: Senior | D25: Middle | E25: Junior
B26: Network Architecture Specialist
B27: Network Design Engineer
B28: L1 Support Engineer
B29: L2 Support Engineer
B30: L3 Support Engineer
B31: Voice Services Specialist
B32: Programme Manager
B33: Project Manager
B34: Project Administrator
B35: Security Analyst
B36: Security Architect
B37: Security Systems Engineer

Sheet Scn 2 Voice - Recurring (hidden)
B2: Voice Services | C2: Recurring Fees | E2: Click links for | H2: Notes
B3: =#REF! ->  | E3: TOC page | F3: Pricing Assumptions | H3: 1: - Price in South African Rand. Assume 0% Annual Inflation Rate. 2: - All new CPPE devices are leased to own model (no residual at end of lease term[3 years]) Service Provider to be the Lessor. 3:- NOTE: Assume greenfields for all Back Office PBX, gateway equipment for this pricing This Scenario is contingent on the network being sized to support this traffic as follows: 4: - NOTE: ALL WAN bandwidth costs required to support VOIP calls for your quoted solution must be included in the WAN Service pricing 5: - NOTE: Any extension or expansion of the LAN required to underpin this service will be done and priced in the LAN Tower.
B4: =#REF! -> 
B5: =#REF! -> 
B7: Scenario Description New centralised Voice infrastructure based on IP with all the infrastructure being owned by Transnet (Front office CPPE and Back Office PBX platforms, gateways ) Note: Contact centre is a hosted SP owned service
B9: Supplier Provided Services | E9: Year 1 | H9: Year 2 | K9: Year 3
E10: Price Per Month | H10: Price Per Month | K10: Price Per Month
B11: Resource Category | C11: Resource Unit of Measure | D11: Service Level | E11: Baseline Quantity | F11: Monthly Unit Cost | G11: Monthly Total | H11: Baseline Quantity | I11: Monthly Unit Cost | J11: Monthly Total | K11: Baseline Quantity | L11: Monthly Unit Cost | M11: Monthly Total | N11: Description of Services / Comments
B12: Voice Subscibers | C12: Basic fixed monthly rental fee | D12: VIP | E12: =SUM(E14:E18)*0.05 -> 1,321 | F12: 0 | G12: =E12*F12 -> 0 | H12: 1,500 | I12: 0 | J12: =H12*I12 -> 0 | K12: 1,500 | L12: 0 | M12: =K12*L12 -> 0
D13: Standard | E13: =SUM(E14:E18)*0.95 -> 25,105 | F13: 0 | G13: 0 | H13: 25,000 | I13: 0 | J13: 0 | K13: 26,500 | L13: 0 | M13: 0
B14: Voice CPPE devices | C14: Lease to Own Model monthly payment | D14: Basic (IP) | E14: 15,386 | F14: 0 | G14: 0 | H14: =H13*0.66 -> 16,500 | I14: 0 | J14: 0 | K14: =K13*0.66 -> 17,490 | L14: 0 | M14: 0
D15: Intermediate (IP) | E15: 4,533 | F15: 0 | G15: 0 | H15: =H13*0.2 -> 5,000 | I15: 0 | J15: 0 | K15: =K13*0.2 -> 5,300 | L15: 0 | M15: 0
D16: Fax to IP | E16: 2,169 | F16: 0 | G16: 0 | H16: =H13*0.2 -> 5,000 | I16: 0 | J16: 0 | K16: =K13*0.2 -> 5,300 | L16: 0 | M16: 0
D17: Advanced (IP) | E17: 2,169 | F17: 0 | G17: =E17*F17 -> 0 | H17: =H13*0.2 -> 5,000 | I17: 0 | J17: =H17*I17 -> 0 | K17: =K13*0.2 -> 5,300 | L17: 0 | M17: =K17*L17 -> 0
D18: Softphone | E18: 2,169 | F18: 0 | G18: 0 | H18: =H13*0.2 -> 5,000 | I18: 0 | J18: 0 | K18: =K13*0.2 -> 5,300 | L18: 0 | M18: 0
C19: Ongoing monthly maintenance fee | D19: Basic (IP) | E19: 15,386 | F19: 0 | G19: 0 | H19: =H13*0.66 -> 16,500 | I19: 0 | J19: 0 | K19: =K13*0.66 -> 17,490 | L19: 0 | M19: 0
D20: Intermediate (IP) | E20: 4,533 | F20: 0 | G20: 0 | H20: =H13*0.2 -> 5,000 | I20: 0 | J20: 0 | K20: =K13*0.2 -> 5,300 | L20: 0 | M20: 0
D21: Fax to IP | E21: 2,169 | F21: 0 | G21: =E21*F21 -> 0 | H21: =H13*0.2 -> 5,000 | I21: 0 | J21: =H21*I21 -> 0 | K21: =K13*0.2 -> 5,300 | L21: 0 | M21: =K21*L21 -> 0
D22: Advanced (IP) | E22: 2,169 | F22: 0 | G22: 0 | H22: =H13*0.2 -> 5,000 | I22: 0 | J22: 0 | K22: =K13*0.2 -> 5,300 | L22: 0 | M22: 0
D23: Softphone | E23: 2,169 | F23: 0 | G23: =E23*F23 -> 0 | H23: =H13*0.2 -> 5,000 | I23: 0 | J23: =H23*I23 -> 0 | K23: =K13*0.2 -> 5,300 | L23: 0 | M23: =K23*L23 -> 0
B24: Voice Service Build and Change (IMACD) per month | C24: Install | D24: Qty of Installs | E24: 50 | F24: 0 | G24: 0 | H24: 50 | I24: 0 | J24: 0 | K24: 50 | L24: 0 | M24: 0
C25: Move | D25: Qty of Moves | E25: 50 | F25: 0 | G25: 0 | H25: 50 | I25: 0 | J25: 0 | K25: 50 | L25: 0 | M25: 0
C26: Add | D26: Qty of Adds | E26: 0 | F26: 0 | G26: 0 | H26: 0 | I26: 0 | J26: 0 | K26: 0 | L26: 0 | M26: 0
C27: Change | D27: Qty of Changes | E27: 0 | F27: 0 | G27: 0 | H27: 0 | I27: 0 | J27: 0 | K27: 0 | L27: 0 | M27: 0
C28: Dismantlement | D28: Qty of Disposals | E28: 10 | F28: 0 | G28: 0 | H28: 10 | I28: 0 | J28: 0 | K28: 10 | L28: 0 | M28: 0
B29: Call Rates | C29: On-net per second (confirm that this is zero cost) | E29: 157,752,000 | F29: 0 | G29: 0 | H29: =E29+(E29*0.08) -> 170,372,160 | I29: 0 | J29: 0 | K29: =H29+(H29*0.06) -> 180,594,490 | L29: 0 | M29: 0
C30: Off-net per second (Local & National Average Landline) | E30: 106,000,000 | F30: 0 | G30: 0 | H30: =E30+(E30*0.08) -> 114,480,000 | I30: 0 | J30: 0 | K30: =H30+(H30*0.06) -> 121,348,800 | L30: 0 | M30: 0
C31: Off-net per second (To Cellular networks) | E31: 156,500,000 | F31: 0 | G31: 0 | H31: =E31+(E31*0.08) -> 169,020,000 | I31: 0 | J31: 0 | K31: =H31+(H31*0.06) -> 179,161,200 | L31: 0 | M31: 0
C32: Maintain schedule of International call tariffs
B33: Voice Logging | C33: Fixed monthly fee per subscriber | D33: Standard | E33: 15 | F33: 0 | G33: 0 | H33: 15 | I33: 0 | J33: 0 | K33: 15 | L33: 0 | M33: 0
B34: Voice Mailbox & Service (catch & despatch to UC mailbox) E mail delivery platform is the responsibility of Transnet (Email delivery Platform) | C34: Fixed monthly fee per subscriber | D34: Standard | F34: 0 | G34: 0 | H34: =SUM(H13:H13) -> 25,000 | I34: 0 | J34: 0 | K34: =SUM(K13:K13) -> 26,500 | L34: 0 | M34: 0
B35: Contact Centre Services | C35: Cost per physical agent | D35: Basic Service (ACD only) | E35: 0 | F35: 0 | G35: 0 | H35: 0 | I35: 0 | J35: 0 | K35: 0 | L35: 0 | M35: 0
D36: Advanced Service (ACD, IVR, Voice Logging, etc.) | E36: 3,000 | F36: 0 | G36: 0 | H36: 3,000 | I36: 0 | J36: 0 | K36: 3,000 | L36: 0 | M36: 0
B37: Security Services | C37: To cover cost of all security activities for the service | E37: 1 | F37: 0 | G37: 0 | H37: 1 | J37: 0 | K37: 1 | M37: 0
B38: Other (specify) | C38: (specify units) | E38: 0 | F38: 0 | G38: 0 | H38: 0 | J38: 0 | K38: 0 | M38: 0
B39: Other (specify) | C39: (specify units) | E39: 0 | F39: 0 | G39: 0 | H39: 0 | J39: 0 | K39: 0 | M39: 0
B40: Other (specify) | C40: (specify units) | E40: 0 | F40: 0 | G40: 0 | H40: 0 | J40: 0 | K40: 0 | M40: 0
B41: Other (specify) | C41: (specify units) | E41: 0 | F41: 0 | G41: 0 | H41: 0 | J41: 0 | K41: 0 | M41: 0
F42: MONTHLY FEE FOR SERVICES | G42: =SUM(G12:G41) -> 0 | J42: =SUM(J12:J41) -> 0 | M42: =SUM(M12:M41) -> 0
F43: ANNUAL FEE | G43: =+G42*12 -> 0 | J43: =+J42*12 -> 0 | M43: =+M42*12 -> 0
B45: NOTE: Complete only if there are Pass-Through charges
B46: Pass-through Charges (Service Management Tools, Third-party provided products, services, and/or project expenses) | D46: Year 1 | G46: Year 2 | J46: Year 3
D47: Price Per Month | G47: Price Per Month | J47: Price Per Month
B48: Pass-Through Description | C48: Unit of Measure | D48: Planned Quantity | E48: Monthly Unit Cost | F48: Monthly Total | G48: Planned Quantity | H48: Monthly Unit Cost | I48: Monthly Total | J48: Planned Quantity | K48: Monthly Unit Cost | L48: Monthly Total | M48: Description of Services / Comments
B49: Service Management Tools | D49: 1 | F49: =D49*E49 -> 0 | G49: 1 | I49: =G49*H49 -> 0 | J49: 1 | L49: =J49*K49 -> 0
B50: [list any other pass-throughs] | F50: =D50*E50 -> 0 | I50: =G50*H50 -> 0 | L50: =J50*K50 -> 0
B51: [list any other pass-throughs] | F51: =D51*E51 -> 0 | I51: =G51*H51 -> 0 | L51: =J51*K51 -> 0
B52: [list any other pass-throughs] | F52: =D52*E52 -> 0 | I52: =G52*H52 -> 0 | L52: =J52*K52 -> 0
E53: MONTHLY TOTAL PASS-THROUGH | F53: =SUM(F49:F52) -> 0 | I53: =SUM(I49:I52) -> 0 | L53: =SUM(L49:L52) -> 0
E54: ANNUAL SERVICE FEES | F54: =+F53*12 -> 0 | I54: =+I53*12 -> 0 | L54: =+L53*12 -> 0
E56: ANNUAL TOTAL SERVICE CHARGES | F56: =G43+F54 -> 0 | I56: =J43+I54 -> 0 | L56: =M43+L54 -> 0

Sheet Scn 3 Voice - Recurring (hidden)
B2: Voice Services | C2: Recurring Fees | E2: Click links for | H2: Notes
B3: =#REF! ->  | E3: TOC page | F3: Pricing Assumptions | H3: 1: - Price in South African Rand. Assume 0% Annual Inflation Rate. 2: - All new CPPE devices are leased to own model (no residual at end of lease term) Service Provider to be the Lessor. This Scenario is contingent on the network being sized to support this traffic as follows: 3: - NOTE: ALL WAN bandwidth costs required to support VOIP calls for your quoted solution must be included in the WAN Service pricing 4: - NOTE: Any extension or expansion of the LAN required to underpin this service will be done and priced in the LAN Tower.
B4: =#REF! -> 
B5: =#REF! -> 
B7: Scenario Description New centralised Voice infrastructure based on IP with all the infrastructure being owned by the Service Provider (Back Office PBX platforms, gateways, Note: excludes CPPE devices which are owned by Transnet)
B9: Supplier Provided Services | E9: Year 1 | H9: Year 2 | K9: Year 3
E10: Price Per Month | H10: Price Per Month | K10: Price Per Month
B11: Resource Category | C11: Resource Unit of Measure | D11: Service Level | E11: Baseline Quantity | F11: Monthly Unit Cost | G11: Monthly Total | H11: Baseline Quantity | I11: Monthly Unit Cost | J11: Monthly Total | K11: Baseline Quantity | L11: Monthly Unit Cost | M11: Monthly Total | N11: Description of Services / Comments
B12: Voice Subscibers | C12: Basic fixed monthly rental fee | D12: VIP | E12: =SUM(E14:E18)*0.05 -> 1,321 | F12: 0 | G12: =E12*F12 -> 0 | H12: 1,500 | I12: 0 | J12: =H12*I12 -> 0 | K12: 1,500 | L12: 0 | M12: =K12*L12 -> 0
D13: Standard | E13: =SUM(E14:E18)*0.95 -> 25,105 | F13: 0 | G13: 0 | H13: 25,000 | I13: 0 | J13: 0 | K13: 26,500 | L13: 0 | M13: 0
B14: Voice CPPE devices | C14: Lease to Own Model monthly payment | D14: Basic (IP) | E14: 15,386 | F14: 0 | G14: 0 | H14: =H13*0.66 -> 16,500 | I14: 0 | J14: 0 | K14: =K13*0.66 -> 17,490 | L14: 0 | M14: 0
D15: Intermediate (IP) | E15: 4,533 | F15: 0 | G15: 0 | H15: =H13*0.2 -> 5,000 | I15: 0 | J15: 0 | K15: =K13*0.2 -> 5,300 | L15: 0 | M15: 0
D16: Fax to IP | E16: 2,169 | F16: 0 | G16: 0 | H16: =H13*0.2 -> 5,000 | I16: 0 | J16: 0 | K16: =K13*0.2 -> 5,300 | L16: 0 | M16: 0
D17: Advanced (IP) | E17: 2,169 | F17: 0 | G17: 0 | H17: =H13*0.2 -> 5,000 | I17: 0 | J17: 0 | K17: =K13*0.2 -> 5,300 | L17: 0 | M17: 0
D18: Softphone | E18: 2,169 | F18: 0 | G18: 0 | H18: =H13*0.2 -> 5,000 | I18: 0 | J18: 0 | K18: =K13*0.2 -> 5,300 | L18: 0 | M18: 0
C19: Ongoing monthly maintenance fee | D19: Basic (IP) | E19: 15,386 | F19: 0 | G19: 0 | H19: =H13*0.66 -> 16,500 | I19: 0 | J19: 0 | K19: =K13*0.66 -> 17,490 | L19: 0 | M19: 0
D20: Intermediate (IP) | E20: 4,533 | F20: 0 | G20: 0 | H20: =H13*0.2 -> 5,000 | I20: 0 | J20: 0 | K20: =K13*0.2 -> 5,300 | L20: 0 | M20: 0
D21: Fax to IP | E21: 2,169 | F21: 0 | G21: 0 | H21: =H13*0.2 -> 5,000 | I21: 0 | J21: 0 | K21: =K13*0.2 -> 5,300 | L21: 0 | M21: 0
D22: Advanced (IP) | E22: 2,169 | F22: 0 | G22: 0 | H22: =H13*0.2 -> 5,000 | I22: 0 | J22: 0 | K22: =K13*0.2 -> 5,300 | L22: 0 | M22: 0
D23: Softphone | E23: 2,169 | F23: 0 | G23: 0 | H23: =H13*0.2 -> 5,000 | I23: 0 | J23: 0 | K23: =K13*0.2 -> 5,300 | L23: 0 | M23: 0
B24: Voice Service Build and Change (IMACD) per month | C24: Install | D24: Qty of Installs | E24: 50 | F24: 0 | G24: 0 | H24: 50 | I24: 0 | J24: 0 | K24: 50 | L24: 0 | M24: 0
C25: Move | D25: Qty of Moves | E25: 50 | F25: 0 | G25: 0 | H25: 50 | I25: 0 | J25: 0 | K25: 50 | L25: 0 | M25: 0
C26: Add | D26: Qty of Adds | E26: 0 | F26: 0 | G26: 0 | H26: 0 | I26: 0 | J26: 0 | K26: 0 | L26: 0 | M26: 0
C27: Change | D27: Qty of Changes | E27: 0 | F27: 0 | G27: 0 | H27: 0 | I27: 0 | J27: 0 | K27: 0 | L27: 0 | M27: 0
C28: Dismantlement | D28: Qty of Disposals | E28: 10 | F28: 0 | G28: 0 | H28: 10 | I28: 0 | J28: 0 | K28: 10 | L28: 0 | M28: 0
B29: Call Rates | C29: On-net per second (confirm that this is zero cost) | E29: 157,752,000 | F29: 0 | G29: 0 | H29: =E29+(E29*0.08) -> 170,372,160 | I29: 0 | J29: 0 | K29: =H29+(H29*0.06) -> 180,594,490 | L29: 0 | M29: 0
C30: Off-net per second (Local & National Average Landline) | E30: 106,000,000 | F30: 0 | G30: 0 | H30: =E30+(E30*0.08) -> 114,480,000 | I30: 0 | J30: 0 | K30: =H30+(H30*0.06) -> 121,348,800 | L30: 0 | M30: 0
C31: Off-net per second (To Cellular networks) | E31: 156,500,000 | F31: 0 | G31: 0 | H31: =E31+(E31*0.08) -> 169,020,000 | I31: 0 | J31: 0 | K31: =H31+(H31*0.06) -> 179,161,200 | L31: 0 | M31: 0
C32: Maintain schedule of International call tariffs
B33: Voice Logging | C33: Fixed monthly fee per subscriber | D33: Standard | E33: 15 | F33: 0 | G33: 0 | H33: 15 | I33: 0 | J33: 0 | K33: 15 | L33: 0 | M33: 0
B34: Voice Mailbox & Service (catch & despatch to UC mailbox) E mail delivery platform is the responsibility of Transnet (Email delivery Platform) | C34: Fixed monthly fee per subscriber | D34: Standard | F34: 0 | G34: 0 | H34: =SUM(H13:H13) -> 25,000 | I34: 0 | J34: 0 | K34: =SUM(K13:K13) -> 26,500 | L34: 0 | M34: 0
B35: Contact Centre Services | C35: Cost per physical agent | D35: Basic Service (ACD only) | E35: 0 | F35: 0 | G35: 0 | H35: 0 | I35: 0 | J35: 0 | K35: 0 | L35: 0 | M35: 0
D36: Advanced Service (ACD, IVR, Voice Logging, etc.) | E36: 3,000 | F36: 0 | G36: 0 | H36: 3,000 | I36: 0 | J36: 0 | K36: 3,000 | L36: 0 | M36: 0
B37: Security Services | C37: To cover cost of all security activities for the service | E37: 1 | F37: 0 | G37: 0 | H37: 1 | J37: 0 | K37: 1 | M37: 0
B38: Other (specify) | C38: (specify units) | E38: 0 | F38: 0 | G38: 0 | H38: 0 | J38: 0 | K38: 0 | M38: 0
B39: Other (specify) | C39: (specify units) | E39: 0 | F39: 0 | G39: 0 | H39: 0 | J39: 0 | K39: 0 | M39: 0
B40: Other (specify) | C40: (specify units) | E40: 0 | F40: 0 | G40: 0 | H40: 0 | J40: 0 | K40: 0 | M40: 0
B41: Other (specify) | C41: (specify units) | E41: 0 | F41: 0 | G41: 0 | H41: 0 | J41: 0 | K41: 0 | M41: 0
F42: MONTHLY FEE FOR SERVICES | G42: =SUM(G12:G41) -> 0 | J42: =SUM(J12:J41) -> 0 | M42: =SUM(M12:M41) -> 0
F43: ANNUAL FEE | G43: =+G42*12 -> 0 | J43: =+J42*12 -> 0 | M43: =+M42*12 -> 0
B45: NOTE: Complete only if there are Pass-Through charges
B46: Pass-through Charges (Service Management Tools, Third-party provided products, services, and/or project expenses) | D46: Year 1 | G46: Year 2 | J46: Year 3
D47: Price Per Month | G47: Price Per Month | J47: Price Per Month
B48: Pass-Through Description | C48: Unit of Measure | D48: Planned Quantity | E48: Monthly Unit Cost | F48: Monthly Total | G48: Planned Quantity | H48: Monthly Unit Cost | I48: Monthly Total | J48: Planned Quantity | K48: Monthly Unit Cost | L48: Monthly Total | M48: Description of Services / Comments
B49: Service Management Tools | D49: 1 | F49: =D49*E49 -> 0 | G49: 1 | I49: =G49*H49 -> 0 | J49: 1 | L49: =J49*K49 -> 0
B50: [list any other pass-throughs] | F50: =D50*E50 -> 0 | I50: =G50*H50 -> 0 | L50: =J50*K50 -> 0
B51: [list any other pass-throughs] | F51: =D51*E51 -> 0 | I51: =G51*H51 -> 0 | L51: =J51*K51 -> 0
B52: [list any other pass-throughs] | F52: =D52*E52 -> 0 | I52: =G52*H52 -> 0 | L52: =J52*K52 -> 0
E53: MONTHLY TOTAL PASS-THROUGH | F53: =SUM(F49:F52) -> 0 | I53: =SUM(I49:I52) -> 0 | L53: =SUM(L49:L52) -> 0
E54: ANNUAL SERVICE FEES | F54: =+F53*12 -> 0 | I54: =+I53*12 -> 0 | L54: =+L53*12 -> 0
E56: ANNUAL TOTAL SERVICE CHARGES | F56: =G43+F54 -> 0 | I56: =J43+I54 -> 0 | L56: =M43+L54 -> 0

Sheet Scn 2 LAN - Recurring (hidden)
B2: LAN Services | C2: Recurring Fees | F2: Click links for | I2: Notes
B3: =#REF! ->  | F3: TOC page | G3: Pricing Assumptions | I3: 1: - Price in South African Rand. Assume 0% Annual Inflation Rate. 2: - All cabling is owned by Transnet and must NOT be factored into the LAN per port costs. Guidance as follows: i) All cabling to be used for IMACDs must be included in the IMACD tariff with ownership of the associated cabling plant becoming Transnet assets ii) For in scope cabling requiring replacement as part of a repair incident the cabling material costs will be recovered for this (see cabling material costs line item below)
B4: =#REF! -> 
B5: =#REF! -> 
B7: Scenario Description LAN Services to be priced per switch
B9: Supplier Provided Services | F9: Year 1 | I9: Year 2 | L9: Year 3 | O9: Year 4 | R9: Year 5
F10: Price Per Month | I10: Price Per Month | L10: Price Per Month | O10: Price Per Month | R10: Price Per Month
B11: Resource Category | C11: Unit of Measure | D11: Service Level | E11: Service Window | F11: Baseline Quantity | G11: Monthly Unit Cost | H11: Monthly Total | I11: Baseline Quantity | J11: Monthly Unit Cost | K11: Monthly Total | L11: Baseline Quantity | M11: Monthly Unit Cost | N11: Monthly Total | O11: Baseline Quantity | P11: Monthly Unit Cost | Q11: Monthly Total | R11: Baseline Quantity | S11: Monthly Unit Cost | T11: Monthly Total | U11: Description of Services / Comments
B12: Wired LAN Switches | C12: Access 8 Port | D12: Bronze | E12: Standard | F12: 1,344 | G12: R144.91 | H12: R194,759.04 | I12: 1,357 | J12: R115.93 | K12: R157,317.01 | L12: 1,371 | M12: R97.38 | N12: R133,507.98 | O12: 1,385 | P12: R89.59 | Q12: R124,082.15 | R12: 1,399 | S12: R82.42 | T12: R115,305.58
C13: Access 24 Port | D13: Bronze | E13: Standard | F13: 1,344 | G13: R595.88 | H13: R800,862.72 | I13: 1,357 | J13: R476.70 | K13: R646,881.90 | L13: 1,371 | M13: R400.43 | N13: R548,989.53 | O13: 1,385 | P13: R368.40 | Q13: R510,234.00 | R13: 1,399 | S13: R338.93 | T13: R474,163.07
C14: Access 48 Port | D14: Bronze | E14: Extended | F14: 650 | G14: R1,643.44 | H14: R1,068,236.00 | I14: 657 | J14: R1,314.75 | K14: R863,790.75 | L14: 664 | M14: R1,104.39 | N14: R733,314.96 | O14: 671 | P14: R1,016.04 | Q14: R681,762.84 | R14: 678 | S14: R934.76 | T14: R633,767.28
C15: Access 48 Port | D15: Silver | E15: Extended | F15: 217 | G15: R1,972.12 | H15: R427,950.04 | I15: 219 | J15: R1,577.70 | K15: R345,516.30 | L15: 221 | M15: R1,325.27 | N15: R292,884.67 | O15: 223 | P15: R1,219.25 | Q15: R271,892.75 | R15: 225 | S15: R1,121.71 | T15: R252,384.75
C16: Access 48 Port | D16: Gold | E16: Premium | F16: 217 | G16: R3,081.44 | H16: R668,672.48 | I16: 219 | J16: R2,465.15 | K16: R539,867.85 | L16: 221 | M16: R2,070.73 | N16: R457,631.33 | O16: 223 | P16: R1,905.07 | Q16: R424,830.61 | R16: 225 | S16: R1,752.66 | T16: R394,348.50
C17: Distribution 12 x 1 Gbps | D17: Bronze | E17: Standard | F17: 648 | G17: R1,136.87 | H17: R736,691.76 | I17: 654 | J17: R909.50 | K17: R594,813.00 | L17: 661 | M17: R763.98 | N17: R504,990.78 | O17: 668 | P17: R702.86 | Q17: R469,510.48 | R17: 675 | S17: R646.63 | T17: R436,475.25
C18: Distribution 12 x 1 Gbps | D18: Gold | E18: Premium | F18: 84 | G18: R2,557.96 | H18: R214,868.64 | I18: 85 | J18: R2,046.37 | K18: R173,941.45 | L18: 86 | M18: R1,718.95 | N18: R147,829.70 | O18: 87 | P18: R1,581.43 | Q18: R137,584.41 | R18: 88 | S18: R1,454.92 | T18: R128,032.96
C19: Core Configurable | D19: Gold | E19: Premium | F19: 28 | G19: R14,013.20 | H19: R392,369.60 | I19: 28 | J19: R11,210.56 | K19: R313,895.68 | L19: 28 | M19: R9,416.87 | N19: R263,672.36 | O19: 28 | P19: R8,663.52 | Q19: R242,578.56 | R19: 28 | S19: R7,970.44 | T19: R223,172.32
B20: Wireless LAN Access Points (To include all controllers and management solutions) | C20: Qty of Wireless LAN Access Points | D20: Gold | F20: 537 | G20: R1,537.20 | H20: R825,476.40 | I20: 564 | J20: R1,229.76 | K20: R693,584.64 | L20: 592 | M20: R1,033.00 | N20: R611,536.00 | O20: 622 | P20: R950.36 | Q20: R591,123.92 | R20: 653 | S20: R874.33 | T20: R570,937.49
D21: Silver | F21: 0 | G21: R1,098.00 | H21: 0 | I21: 0 | J21: R878.40 | K21: 0 | L21: 0 | M21: R737.86 | N21: 0 | O21: 0 | P21: R678.83 | Q21: 0 | R21: 0 | S21: R624.52 | T21: 0
D22: Bronze | F22: 197 | G22: R732.00 | H22: R144,204.00 | I22: 207 | J22: R585.60 | K22: R121,219.20 | L22: 217 | M22: R491.90 | N22: R106,742.30 | O22: 228 | P22: R452.55 | Q22: R103,181.40 | R22: 239 | S22: R416.35 | T22: R99,507.65
B23: LAN Service Build and Change (IMACD) per port. Includes up to 80m Cat5e cable or better | C23: Install | D23: Qty of Installs | F23: 550 | G23: R852.60 | H23: R468,930.00 | I23: 606 | J23: R920.81 | K23: R558,010.86 | L23: 665 | M23: R994.47 | N23: R661,322.55 | O23: 698 | P23: R1,074.03 | Q23: R749,672.94 | R23: 733 | S23: R1,159.95 | T23: R850,243.35
C24: Move | D24: Qty of Moves | F24: 275 | G24: R852.60 | H24: R234,465.00 | I24: 303 | J24: R920.81 | K24: R279,005.43 | L24: 333 | M24: R994.47 | N24: R331,158.51 | O24: 350 | P24: R1,074.03 | Q24: R375,910.50 | R24: 368 | S24: R1,159.95 | T24: R426,861.60
C25: Add | D25: Qty of Adds | F25: 110 | G25: R852.60 | H25: R93,786.00 | I25: 121 | J25: R920.81 | K25: R111,418.01 | L25: 133 | M25: R994.47 | N25: R132,264.51 | O25: 140 | P25: R1,074.03 | Q25: R150,364.20 | R25: 147 | S25: R1,159.95 | T25: R170,512.65
C26: Change | D26: Qty of Changes | F26: 110 | G26: R852.60 | H26: R93,786.00 | I26: 121 | J26: R920.81 | K26: R111,418.01 | L26: 133 | M26: R994.47 | N26: R132,264.51 | O26: 140 | P26: R1,074.03 | Q26: R150,364.20 | R26: 147 | S26: R1,159.95 | T26: R170,512.65
C27: Dismantlement | D27: Qty of Dismantlement's | F27: 55 | G27: R852.60 | H27: R46,893.00 | I27: 61 | J27: R920.81 | K27: R56,169.41 | L27: 67 | M27: R994.47 | N27: R66,629.49 | O27: 70 | P27: R1,074.03 | Q27: R75,182.10 | R27: 74 | S27: R1,159.95 | T27: R85,836.30
C28: Standard Site Survey (Indoor) | D28: Qty of Surveys | F28: 68 | G28: R1,040.00 | H28: R70,720.00 | I28: 68 | J28: R1,123.20 | K28: R76,377.60 | L28: 68 | M28: R1,213.06 | N28: R82,488.08 | O28: 68 | P28: R1,310.10 | Q28: R89,086.80 | R28: 68 | S28: R1,414.91 | T28: R96,213.88
C29: Standard Site Survey (Outdoor, workshop/campus environments) | D29: Qty of Surveys | F29: 8 | G29: R2,350.00 | H29: R18,800.00 | I29: 8 | J29: R2,538.00 | K29: R20,304.00 | L29: 8 | M29: R2,741.04 | N29: R21,928.32 | O29: 8 | P29: R2,960.32 | Q29: R23,682.56 | R29: 8 | S29: R3,197.15 | T29: R25,577.20
B30: Cabling Material Costs For cabling material required to repair existing in scope cabling faults | C30: UTP cable (Cat5e or better) | D30: Per 100metre run | F30: 1 | G30: R892.21 | H30: R892.21 | J30: 0 | K30: 0 | M30: 0 | N30: 0 | P30: 0 | Q30: 0 | S30: 0 | T30: 0
C31: Multimode Fibre up to 24-core | D31: Per running metre | F31: 1 | G31: R21.11 | H31: R21.11 | J31: 0 | K31: 0 | M31: 0 | N31: 0 | P31: 0 | Q31: 0 | S31: 0 | T31: 0
C32: Single mode Fibre up to 24-core | D32: Per running metre | F32: 1 | G32: R9.10 | H32: R9.10 | J32: 0 | K32: 0 | M32: 0 | N32: 0 | P32: 0 | Q32: 0 | S32: 0 | T32: 0
B33: Security Services | C33: To cover cost of all security activities for the service | F33: 1 | G33: 0 | H33: 0 | I33: 1 | K33: 0 | L33: 1 | N33: 0 | O33: 1 | Q33: 0 | R33: 1 | T33: 0
B34: Cisco ISE and Prime | F34: 1 | G34: 0 | H34: 0 | I34: 1 | J34: 0 | K34: 0 | L34: 1 | M34: 0 | N34: 0 | O34: 1 | P34: 0 | Q34: 0 | R34: 1 | S34: 0 | T34: 0
B35: Other (specify) | C35: (specify units) | F35: 1 | H35: 0 | I35: 0 | K35: 0 | L35: 0 | N35: 0 | O35: 0 | Q35: 0 | R35: 0 | T35: 0
B36: Other (specify) | C36: (specify units) | F36: 0 | H36: 0 | I36: 0 | K36: 0 | L36: 0 | N36: 0 | O36: 0 | Q36: 0 | R36: 0 | T36: 0
G37: MONTHLY FEE FOR SERVICES | H37: =SUM(H12:H36) -> R6,502,393.10 | K37: =SUM(K12:K36) -> R5,663,531.10 | N37: =SUM(N12:N36) -> R5,229,155.58 | Q37: =SUM(Q12:Q36) -> R5,171,044.42 | T37: =SUM(T12:T36) -> R5,153,852.48
G38: ANNUAL FEE | H38: =+H37*12 -> R78,028,717.20 | K38: =+K37*12 -> R67,962,373.20 | N38: =+N37*12 -> R62,749,866.96 | Q38: =+Q37*12 -> R62,052,533.04 | T38: =+T37*12 -> R61,846,229.76
B47: NOTE: Complete only if there are Pass-Through charges
B48: Pass-through Charges (Service Management Tools, Third-party provided products, services, and/or project expenses) | D48: Year 1 | H48: Year 2 | K48: Year 3 | N48: Year 4 | Q48: Year 5
D49: Price Per Month | H49: Price Per Month | K49: Price Per Month | N49: Price Per Month | Q49: Price Per Month
B50: Pass-Through Description | C50: Unit of Measure | D50: Planned Quantity | F50: Monthly Unit Cost | G50: Monthly Total | H50: Planned Quantity | I50: Monthly Unit Cost | J50: Monthly Total | K50: Planned Quantity | L50: Monthly Unit Cost | M50: Monthly Total | N50: Planned Quantity | O50: Monthly Unit Cost | P50: Monthly Total | Q50: Planned Quantity | R50: Monthly Unit Cost | S50: Monthly Total
B51: Service Management Tools | D51: 1 | G51: =D51*F51 -> 0 | H51: 1 | J51: =H51*I51 -> R 0 | K51: 1 | M51: =K51*L51 -> R 0 | P51: =K51*O51 -> R 0 | S51: =N51*R51 -> R 0
B52: Storage and Logistics | G52: =D52*F52 -> 0 | J52: =H52*I52 -> R 0 | M52: =K52*L52 -> R 0 | P52: =K52*O52 -> R 0 | S52: =N52*R52 -> R 0
B53: [list any other pass-throughs] | G53: =D53*F53 -> 0 | J53: =H53*I53 -> R 0 | M53: =K53*L53 -> R 0 | P53: =K53*O53 -> R 0 | S53: =N53*R53 -> R 0
B54: [list any other pass-throughs] | G54: =D54*F54 -> 0 | J54: =H54*I54 -> R 0 | M54: =K54*L54 -> R 0 | P54: =K54*O54 -> R 0 | S54: =N54*R54 -> R 0
B55: [list any other pass-throughs] | G55: =D55*F55 -> 0 | J55: =H55*I55 -> R 0 | M55: =K55*L55 -> R 0 | P55: =K55*O55 -> R 0 | S55: =N55*R55 -> R 0
F56: MONTHLY TOTAL PASS-THROUGH | G56: =SUM(G51:G55) -> 0 | J56: =SUM(J51:J55) -> 0 | M56: =SUM(M51:M55) -> 0 | P56: =SUM(P51:P55) -> 0 | S56: =SUM(S51:S55) -> 0
F57: ANNUAL SERVICE FEES | G57: =+G56*12 -> 0 | J57: =+J56*12 -> 0 | M57: =+M56*12 -> 0 | P57: =+P56*12 -> 0 | S57: =+S56*12 -> 0
F59: ANNUAL TOTAL SERVICE CHARGES | G59: =H38+G57 -> R78,028,717.20 | J59: =K38+J57 -> R67,962,373.20 | M59: =N38+M57 -> R62,749,866.96 | P59: =Q38+P57 -> R62,052,533.04 | S59: =T38+S57 -> R61,846,229.76
